Cogmind - Beta 16.1 @@@ ROGUE MODE // 2026.02.26 @ 09:38:04 Player: alexustasu Result: Destroyed by G5-VT6(R) with Subdweller Laser Performance ------------- Evolutions (0) 0 Regions Visited (2) 400 Robots Destroyed (15) 75 Value Destroyed (426) 426 Prototype IDs (0) 0 Alien Tech Used (0) 0 Bonus (0) 0 TOTAL SCORE: 901 Bonus ------- None Cogmind --------- Core Integrity 0/250 Matter 295/300 Energy 98/100 System Corruption 0% Temperature Cool (6) Movement Rolling (110) Location -10/Subcaves Parts ------- > --- POWER (1) -------- (None) > --- PROPULSION (2) --- Subdweller Monowheel Subdweller Monowheel > --- UTILITY (2) ------ Small Storage Unit Improved Targeting Computer > --- WEAPON (2) ------- Heavy Assault Rifle Subdweller Machine Gun > --- INVENTORY (8) ---- Subdweller Monowheel Disposable Heat Sink Subdweller Optics Makeshift Light Armor Plating Powered Cannon Grenade Launcher Ripper Peak State ------------ > --- POWER ------------ Subdweller Power Source > --- PROPULSION ------- Subdweller Monowheel Subdweller Monowheel > --- UTILITY ---------- Small Storage Unit Improved Targeting Computer > --- WEAPON ----------- Heavy Assault Rifle Ripper > --- INVENTORY -------- Improved Ion Engine Subdweller Optics Makeshift Light Armor Plating Subdweller Laser Powered Cannon Heavy Assault Rifle Grenade Launcher [Rating: 17] Favorites ----------- Power Improved Ion Engine Engine Improved Ion Engine Propulsion Aluminum Leg Leg Aluminum Leg Wheel Subdweller Monowheel Utility Small Storage Unit Storage Small Storage Unit Processor Improved Targeting Computer Protection Light Armor Plating Weapon Medium Laser Energy Gun Medium Laser Energy Cannon Beam Cannon Ballistic Gun Heavy Assault Rifle Launcher Grenade Launcher Slashing Weapon Ripper Build | -11 -10 -10 ------- Run | Yrd Mat Sub Slots Evolved . | . . . Power . | . . . Propulsion . | . . . Utility . | . . . Weapon . | . . . Parts Attached 29 | 6 6 17 Power 4 | 1 1 2 Engine 4 | 1 1 2 Core . | . . . Reactor . | . . . Propulsion 8 | 2 . 6 Treads . | . . . Leg 2 | 2 . . Wheel 6 | . . 6 Hover . | . . . Flight . | . . . Utility 4 | 1 3 . Device . | . . . Storage 2 | 1 1 . Processor 1 | . 1 . Hackware . | . . . Protection 1 | . 1 . Artifact . | . . . Weapon 13 | 2 2 9 Energy Gun 4 | 1 . 3 Energy Cannon 2 | . 2 . Ballistic Gun 5 | 1 . 4 Ballistic Cannon . | . . . Launcher 1 | . . 1 Special Weapon . | . . . Impact Weapon . | . . . Slashing Weapon 1 | . . 1 Piercing Weapon . | . . . Special Melee Weapon . | . . . Unidentified Prototypes . | . . . Parts Lost 8 | . . 8 Power 2 | . . 2 Propulsion 4 | . . 4 Utility . | . . . Weapon 2 | . . 2 Highest Loss Streak 4 | . . 4 To Critical Strikes . | . . . Average Backups 6 | 1 6 7 Power . | . 1 . Propulsion . | . 1 . Utility 2 | . 1 2 Weapon 3 | . 2 3 Tool/Special . | . . . Unused Backups 11 | . 2 9 Power 1 | . 1 . Propulsion 2 | . . 2 Utility 6 | . . 6 Weapon 2 | . 1 1 Tool/Special . | . . . Average Slot Usage (%) 95 | . 95 95 Engine 12 | . 14 12 Leg 19 | . 28 14 Wheel 6 | . . 10 Storage 14 | . 14 14 Processor 10 | . 3 14 Protection 2 | . 6 . Energy Gun 11 | . 14 10 Energy Cannon 6 | . 9 4 Ballistic Gun 9 | . 4 12 Peak Build Rating 17 | 6 10 17 Average Rating 10 | 4 7 12 On Entrance 5 | . 6 10 Avg Prop Armor Cover (%) . | . . . Naked Turns . | . . . Heaviest Build 20 | 14 18 20 Greatest Support 40 | 20 20 40 Greatest Overweight (x) 3 | 2 . 3 Average Overweight (x) . | . . . Largest Inventory Capacity 8 | 8 8 8 Average Capacity 7 | 7 8 8 Most Carried 8 | 3 8 8 Average Carried 7 | 1 6 7 Final Capacity 8 | 8 8 8 Final Carried 8 | 3 8 8 Class Distribution -------------------- 97% | Mutant Dominant Class ---------------- Mutant | -10/Materials Mutant | -10/Subcaves Resources | -11 -10 -10 ----------- Run | Yrd Mat Sub Matter Collected 635 | 188 121 326 Remotely . | . . . Salvage Created 426 | . 87 339 Parts 36 | . 14 22 Haulers Intercepted . | . . . Recyclers Shooed . | . . . Parts Field Recycled . | . . . Retrieved Matter . | . . . Parts Self-Destructed 2 | . . 2 Prevented . | . . . Parts Restored . | . . . Kills | -11 -10 -10 ------- Run | Yrd Mat Sub Combat Hostiles Destroyed 14 | . 5 9 Melee 1 | . . 1 Guns 7 | . 2 5 Cannons 4 | . 3 1 AOE 2 | . . 2 Classes Destroyed 3 | . 2 1 Watcher 1 | . 1 . Swarmer 5 | . 5 . Subdweller 9 | . . 9 Best Kill Streak 3 | . 3 2 Combat Bots Only 3 | . 3 2 Max Kills in Single Turn 2 | . 1 2 Gunslinging . | . . . Exploded 2 | . . 2 Melee 1 | . . 1 Uniques/NPCs Destroyed . | . . . Combat | -11 -10 -10 -------- Run | Yrd Mat Sub Hostile Shots Fired 73 | . 12 61 Missed 15 | . 1 14 Hits 58 | . 11 47 Projectile 58 | . 11 47 AOE 2 | . . 2 Critical Strikes 1 | . . 1 Damage Taken 1278 | . 126 1152 Core 265 | . 7 258 Absorbed by Shields . | . . . Core Remaining (%) 100 | 100 . . Volleys Fired 45 | . 7 38 Largest 2 | . 2 2 Hottest 110 | . 110 110 Shots Fired 85 | . 14 71 Gun 74 | . 7 67 Cannon 10 | . 7 3 Launcher 1 | . . 1 Special . | . . . Kinetic 37 | . . 37 Thermal 47 | . 14 33 Explosive 1 | . . 1 Electromagnetic . | . . . Robot Hit Streak 21 | . 2 21 Robot Miss Streak 2 | . 2 1 Penetration Max . | . . . Secondary Targets . | . . . Shots Hit Robots 69 | . 7 62 Core Hits 23 | . 7 16 Critical Kills . | . . . Critical Parts Destroyed . | . . . Critical Strikes 5 | . . 5 Burn 4 | . . 4 Sever 1 | . . 1 Melee Attacks 5 | . . 5 Impact . | . . . Slashing 5 | . . 5 Piercing . | . . . Sneak Attacks . | . . . Combat Hostiles . | . . . Follow-up Attacks . | . . . Damage Inflicted 1287 | . 119 1168 Guns 938 | . 37 901 Cannons 104 | . 69 35 Explosions 137 | . . 137 Melee 95 | . . 95 Ramming 13 | . 13 . Kinetic 427 | . . 427 Thermal 615 | . 106 509 Explosive 137 | . . 137 Electromagnetic . | . . . Impact . | . . . Slashing 95 | . . 95 Piercing . | . . . Highest Corruption . | . . . Average Corruption . | . . . Corruption Purged . | . . . Corruption Blocked . | . . . Overload Shots . | . . . Overflow Damage . | . . . Projectiles . | . . . Explosions . | . . . Melee . | . . . Knockbacks . | . . . Impact . | . . . Kinetic . | . . . Secondary . | . . . Self-Inflicted Damage . | . . . Shots . | . . . Rammed . | . . . Targets Rammed 3 | . 3 . Kicked 3 | . 3 . Crushed . | . . . Highest Temperature 261 | . 204 261 Average Temperature 99 | . 80 169 Received Heat Transfer 528 | . . 528 Effects 1 | . . 1 Energy Bleed 1 | . . 1 Siege Activations . | . . . Martial Activations . | . . . Shielding Activations . | . . . Robots Disrupted . | . . . Combat Hostiles . | . . . Robots Corrupted . | . . . Combat Hostiles . | . . . Parts Fried . | . . . Impact Corruptions . | . . . Robots Melted . | . . . Combat Hostiles . | . . . Parts Melted 4 | . . 4 Heat Transferred 1387 | . 259 1128 Parts Sabotaged . | . . . Parts Stolen . | . . . Parts Stripped . | . . . Power Chain Reactions . | . . . Alert | -11 -10 -10 ------- Run | Yrd Mat Sub Maximum Alert Level . | . . . Low Security (%) 100 | 100 100 . Level 1 . | . . . Level 2 . | . . . Level 3 . | . . . Level 4 . | . . . Level 5 . | . . . High Security . | . . . Max Security . | . . . Peak Influence 70 | . 70 . Initial . | . . . Average 13 | . 14 . Influence Increases 148 | . 148 . Destroy 0b10 Robot/C 100 | . 100 . Destroy 0b10 Robot/NC 5 | . 5 . Destroy Leader 22 | . 22 . Successful Hack 6 | . 6 . Lose Combat Pursuer 15 | . 15 . Influence Decreases 148 | . 110 38 Entered New Map 19 | . . 19 Time Decay 129 | . 110 19 Squads Dispatched . | . . . Investigation . | . . . Extermination . | . . . Reinforcement . | . . . Assault . | . . . Garrison . | . . . Intercept . | . . . Searches Triggered . | . . . Construction Impeded . | . . . Haulers Reinforced . | . . . Active Scanning Responses . | . . . Cargo Convoy Interrupts . | . . . Stealth | -11 -10 -10 --------- Run | Yrd Mat Sub Distress Signals . | . . . Communications Jammed . | . . . Distress Signals . | . . . Times Spotted 25 | . 11 14 Peak Tracking Total 3 | . 3 3 Tactical Retreats 1 | . 1 . Traps | -11 -10 -10 ------- Run | Yrd Mat Sub Traps Triggered 1 | . 1 . Indirectly . | . . . Trap Hack Attempts . | . . . Triggered . | . . . Disarmed . | . . . Reprogrammed . | . . . Reused . | . . . Traps Extracted . | . . . Installed . | . . . Triggered . | . . . Machines | -11 -10 -10 ---------- Run | Yrd Mat Sub Machines Disabled . | . . . Max in Single Turn . | . . . Machines Repaired . | . . . Machines Dismantled . | . . . Machines Sabotaged . | . . . Overloaded Fab Kills . | . . . Hacking | -11 -10 -10 --------- Run | Yrd Mat Sub Machines Accessed 5 | . 5 . Terminals 3 | . 3 . Fabricators . | . . . Repair Stations 1 | . 1 . Recycling Units 1 | . 1 . Scanalyzers . | . . . Garrison Access . | . . . Total Hacks 8 | . 8 . Successful 3 | . 3 . Failed 5 | . 5 . Catastrophic 1 | . 1 . Database Lockouts . | . . . Manual 5 | . 5 . Terminals 5 | . 5 . Fabricators . | . . . Repair Stations 2 | . 2 . Recycling Units 1 | . 1 . Scanalyzers . | . . . Garrison Access . | . . . Terminal Hacks 2 | . 2 . Robot Analysis 1 | . 1 . Zone Layout 1 | . 1 . Fabricator Hacks . | . . . Repair Station Hacks . | . . . Recycling Unit Hacks 1 | . 1 . Report Inventory 1 | . 1 . Scanalyzer . | . . . Garrison Access Hacks . | . . . Unauthorized Hacks . | . . . Terminals . | . . . Fabricators . | . . . Repair Stations . | . . . Recycling Units . | . . . Scanalyzers . | . . . Garrison Access . | . . . Data Cores Recovered . | . . . Used . | . . . Hacking Detections 3 | . 3 . Full Trace Events 1 | . 1 . Feedback Events . | . . . Feedback Blocked . | . . . Robot Schematics Acquired . | . . . Robots Built . | . . . Authchips . | . . . Time . | . . . Total Robot Build Rating . | . . . Part Schematics Acquired . | . . . Parts Built . | . . . Authchips . | . . . Time . | . . . Total Part Build Rating . | . . . Part Studies Acquired . | . . . Parts Repaired . | . . . Time . | . . . Parts Recycled . | . . . Recycled Matter . | . . . Retrieved Matter . | . . . Retrieved Components . | . . . Parts Scanalyzed . | . . . Part Schematics Acquired . | . . . Parts Damaged . | . . . Bothacking | -11 -10 -10 ------------ Run | Yrd Mat Sub Used RIF Installer . | . . . Robots Hacked . | . . . Non-combat . | . . . Combat . | . . . Robot Hacks Applied . | . . . Relay Couplers Released . | . . . Fabnet Peak Effective % . | . . . Robots Rewired . | . . . Allies Hacked . | . . . Hacks Repelled . | . . . Allies | -11 -10 -10 -------- Run | Yrd Mat Sub Total Allies . | . . . Largest Group . | . . . Highest-Rated Group . | . . . Highest-Rated Ally . | . . . Total Orders . | . . . Ally Attacks . | . . . Total Damage . | . . . Kills . | . . . Allies Corrupted . | . . . Allies Melted . | . . . Intel | -11 -10 -10 ------- Run | Yrd Mat Sub Active Infowar (turns) . | . . . Robot Analysis Total 1 | . 1 . Derelict Logs Recovered 2 | . . 2 Drone Launches . | . . . Drone Recoveries . | . . . Exploration | -11 -10 -10 ------------- Run | Yrd Mat Sub Turns Passed 1910 | 48 687 1175 Spaces Moved 1304 | 34 476 794 Core 46 | 8 . 38 Treads . | . . . Legs 940 | 26 476 438 Wheels 318 | . . 318 Hover . | . . . Flight . | . . . Fastest Speed 50 | 50 120 110 Average Speed 120 | 109 120 120 Slowest Speed 200 | 150 120 200 Overloaded Moves . | . . . Propulsion Burnouts . | . . . Robots Hopped . | . . . Potential Cave-ins . | . . . Cave-ins Triggered . | . . . Exploration Rate (%) 36 | 3 68 38 Regions Visited 2 Branch Regions 1 Pre-discovered Areas 1 | . . 1 Known Exits Taken . | . . . Unknown Exits Taken 2 | 1 1 . Scrap Searched 2 | . . 2 Spaces Dug . | . . . Terrain Destroyed 2 | . . 2 Melee . | . . . Projectile . | . . . AOE 2 | . . 2 Terrain Rammed . | . . . Walls Destroyed . | . . . Machines Disabled . | . . . Actions | -11 -10 -10 --------- Run | Yrd Mat Sub Total 1552 | 42 580 930 Wait 116 | . 74 42 Move 1302 | 33 475 794 Hop . | . . . Pick Up 22 | 3 8 11 Fast Attach 16 | 6 3 7 Attach 2 | . . 2 Detach 1 | . 1 . Swap 20 | . 3 17 Drop 20 | . 6 14 Fire 45 | . 7 38 Melee 5 | . . 5 Ram . | . . . Kick 3 | . 3 . Crush . | . . . Escape Stasis . | . . . Rewire . | . . . Trap . | . . . Miscellaneous . | . . . Route ------- -11/Scrapyard -10/Materials (discovered 5 exits: [*Mat x3] / [*Min] / [*Sub]) -10/Subcaves History --------- Turn | Location | Event 29 | -11/Scrapyard | Discovered new exit (range 15) 49 | -11/Scrapyard | Entered Materials 180 | -10/Materials | Discovered new exit (range 15) 300 | -10/Materials | Build established: Mutant 476 | -10/Materials | Discovered new exit (range 8) 506 | -10/Materials | Discovered new exit (range 14) 573 | -10/Materials | Discovered new exit (range 9) 680 | -10/Materials | Discovered new exit (range 9) 736 | -10/Materials | Entered Subcaves 816 | -10/Subcaves | Learned location of Zion (-7) 828 | -10/Subcaves | Disturbed a concealed Subdweller 1181 | -10/Subcaves | A swath of the cavern ceiling suddenly collapsed 1286 | -10/Subcaves | A Subdweller sparked back to life 1286 | -10/Subcaves | A Subdweller sparked back to life 1286 | -10/Subcaves | A Subdweller sparked back to life 1357 | -10/Subcaves | Found Prototype Energy Cannon 1653 | -10/Subcaves | Core integrity fell below 50% 1675 | -10/Subcaves | Core integrity fell below 20% 1701 | -10/Subcaves | Lost 4 parts (1p2n1w) 1911 | -10/Subcaves | Destroyed by G5-VT6(R) with Subdweller Laser Last Messages --------------- Sub. Monowheel destroyed. Critical hit (Meltdown: +270). Destroyed Scrap Shield. Overheating: Energy bleed (-13). Sub. Monowheel melted. BF-1JN(R) destroyed. Acquired 30 matter. Acquired Sub. Monowheel. Acquired 10 matter. Sub. Laser destroyed. HW-DRZ(R) destroyed. Acquired 13 matter. Subatomizers dissect the Sub. Optics. Acquired Sub. Monowheel. Acquired Imp. Ion Engine. Acquired Disposable Heat Sink. Acquired 20 matter. Subatomizers dissect the Sub. Optics. Acquired Sub. Monowheel. Imp. Ion Engine destroyed. Map ----- +----------------------------------------------------+ | ?????????????????????????????????????????????????? | | ?????????????????????????????????????????????????? | | ?????????????????????????????????????????????????? | | ?????????????????????????????????????????????????? | | ?????????????????????????????????????????????????? | | ?????????????????????????????????????????????????? | | ?????????????????????????????????????????????????? | | ?????????????????????????????????????????????????? | | ?????????????????????????????????????????????????? | | ?????????????????????????????????????????????????? | | ?????????????????????????????????????????????????? | | ?????????????????????????????????????????????????? | | ?????????????????????????????????????????????????? | | ???????????????????????????????# ??????????????? | | ???????????????????????????? ## ???????????????? | | ????????????????????????? "" ????????????????? | | ?????????????????##?????? "" #????????????????? | | ????????????????## ##??## ##???????????????? | | ????????????????# ### " #???????????????? | | ????????????????# "" "" ????????????????? | | ????????????????# " """ ""?????????????????? | | ????????????????# """" R #???????????????????? | | ???????????????????# #????????????????????? | | ???????????????????### R " #????????????????????? | | ????????????????????## " ##????????????????????? | | ???????????????????## @##?????????????????????? | | ??????????????????## "" ##??????????????????????? | | ?????????????????## ##???????????????????????? | | ????????????????## #????????????????????????? | | ????????????????# #????????????????????????? | | ????????????????# #????????????????????????? | | ????????????????## ###??????????????????????? | | ?????????????????### #??????????????????????? | | ??????????????????## ##??????????????????????? | | ????????????????### ###???????????????????????? | | ????????????????# ## #?????????????????????????? | | ????????????????# # #?????????????????????????? | | ##??????????????# ##????????????????????????? | | ##???????###??## # ##???????????????????????? | | #####??## #?## #???????????????????????? | | #### ### #???????????????????????? | | # # ## ##???????????????????????? | | ### = ### #???????????????????????? | | #?## ###?# #???????????????????????? | | #?# ### # ##???# ##???????????????????????? | | #?##??########????## ##??????????????????????? | | ???????????????????# ##?????????????????????? | | ???????????????????# #?????????????????????? | | ???????????????????# &##?????????????????????? | | ?????????????######## ####???????????????????? | +----------------------------------------------------+ Best States ------------- Heat Dissipation 25 Energy Generation 15 Energy Capacity 265 Matter Stores 300 Matter Capacity 300 Sight Range 16 Terrain Scan Density 10 Armor Coverage 150 Evasion (%) 55 Targeting Accuracy 6 Item Schematics ----------------- None Robot Schematics ------------------ None Fabricated ------------ Nothing Repaired ---------- Nothing Studied --------- None Alien Tech Used ----------------- None Achievements -------------- None Challenges ------------ None Game ------ Seed TowerColdBank Manual? 0 Play Time 00:38:28 Cumulative 30.2 hours Start 2026.02.26 @ 09:00:45 End 2026.02.26 @ 09:38:04 Sessions 1 Manual Loads 0 Difficulty Rogue Special Mode None Game No. 32 Rogue 32 Adventurer 0 Explorer 0 Win Type - Total 0 Types 0/0/0/0/0/0/0/0/0/0 Lore% 21 Gallery% 24 Achievement% 14 Wizard Run 0 Options --------- Layout 1 ASCII 0 Keyboard 0 Movement Vi Keybinds 0 Fullscreen 2 Font 32/CogWide Map View 38x17 Zoom Use 49% Tactical HUD 0 Map Filters NONE Filters NONE Steam 1 RUN: 0b56a05f-7c1d-430d-b2f3-cf5a581b8dfa